bitfinex/quotes_SOLUSD_20260202
["timestamp","ask_amount","ask_price","bid_price","bid_amount"]
[1770060873316,3.54958057,104.12,104.1,0.5]
[1770060873612,3.54958057,104.11,104.07,0.5]
[1770060873817,4.27527085,104.12,104.07,0.5]
[1770060873818,3.54958057,104.1,104.07,0.5]
[1770060875200,3.54958057,104.09,104.07,0.5]
[1770060875404,3.54958057,104.09,104.06,0.5]
[1770060875608,3.54958057,104.08,104.05,2.97215037]
[1770060875997,3.54958057,104.08,104.06,0.5]
[1770060876199,37.17123017,104.1,104.05,2.97215037]
[1770060876421,3.54958057,104.08,104.05,2.97215037]
[1770060876919,3.54958057,104.07,104.05,2.97215037]
[1770060877920,3.54958057,104.08,104.05,2.97215037]
[1770060878509,9.6070708,104.09,104.05,2.97215037]
[1770060878714,3.54958057,104.09,104.06,0.5]
[1770060879102,3.54958057,104.08,104.06,0.5]
[1770060879302,3.54958057,104.08,104.05,2.97215037]
[1770060879515,4.02603529,104.08,104.03,26.79483682]
[1770060879723,4.02603529,104.08,104.03,3.54958057]
[1770060881127,13.63450131,104.08,104.01,9.71446014]
[1770060881304,13.63450131,104.08,104.03,3.54958057]
[1770060881621,13.63450131,104.08,104.04,0.47790914]
[1770060882322,4.02603529,104.08,104.04,0.47790914]
[1770060885507,13.63418563,104.08,104.04,0.47790914]
[1770060887211,28.29085009,104.1,104.05,0.47790914]
[1770060887212,13.6335078,104.09,104.05,0.47790914]
[1770060887606,0.47645472,104.08,104.05,0.47790914]
[1770060888114,4.02603529,104.08,104.05,0.47790914]
[1770060888905,7.82485142,104.1,104.06,0.47790914]
[1770060889104,0.47645472,104.08,104.01,0.86223228]
[1770060889304,4.00848808,104.06,104.02,0.48113886]
[1770060889524,4.73417836,104.07,104.03,4.03071943]
[1770060889826,17.89094425,104.09,104.05,0.48113886]
[1770060890409,4.03920142,104.08,104.05,0.48113886]
[1770060890934,4.03920142,104.07,104.02,3.54958057]
[1770060891132,4.03920142,104.07,104.03,0.46828957]
[1770060891133,3.54958057,104.06,104.03,0.46828957]
[1770060891706,13.64881222,104.07,104.03,0.46828957]
[1770060893036,10.09808999,104.08,104.04,0.46828957]
[1770060893331,13.64767056,104.08,104.04,0.46828957]
[1770060893510,4.03920142,104.07,104.04,0.46828957]
[1770060893709,13.64864358,104.07,104.04,0.46828957]
[1770060896831,13.64864358,104.07,104.02,3.54958057]
[1770060896832,4.03920142,104.06,104.02,0.46828957]
[1770060897009,4.03920142,104.05,104.02,0.46828957]
[1770060897613,3.54958057,104.04,104.02,0.46828957]
[1770060898028,4.03920142,104.04,104.01,0.1]
[1770060898734,3.54958057,104.03,104.01,0.1]
[1770060898939,3.54958057,104.04,104.01,0.56828957]
[1770060899113,3.54958057,104.08,104.03,0.46828957]
[1770060899428,4.03920142,104.08,104.03,0.46828957]
[1770060899730,4.03920142,104.08,104.04,0.46828957]
[1770060901042,0.48962085,104.04,104.01,0.1]
[1770060901338,3.54958057,104.03,104.01,0.56828957]
[1770060902336,4.03920142,104.04,104.01,0.56828957]
[1770060902541,3.54958057,104.05,104.01,0.56828957]
[1770060902719,3.54958057,104.05,104.02,0.46828957]
[1770060902919,13.64960727,104.06,104.02,0.46828957]
[1770060903238,13.15998642,104.06,104.02,0.46828957]
[1770060903610,13.64960727,104.06,104.02,0.46828957]
[1770060904014,4.03920142,104.06,104.02,0.46828957]
[1770060904244,0.48962085,104.06,104.02,0.46828957]
[1770060904437,3.54958057,104.06,104.03,0.46828957]
[1770060904618,0.48962085,104.07,104.03,3.54958057]
[1770060905035,13.64649935,104.09,104.04,3.54958057]
[1770060905823,4.03920142,104.09,104.04,3.54958057]
[1770060906027,13.64628026,104.09,104.04,3.54958057]
[1770060906529,13.64628026,104.09,104.05,0.46828957]
[1770060907543,4.03920142,104.09,104.05,0.46828957]
[1770060907722,13.64631208,104.09,104.05,0.46828957]
[1770060910146,0.48962085,104.07,104.04,0.46828957]
[1770060911540,28.77994218,104.11,104.07,0.46828957]
[1770060911718,5.02397871,104.12,104.08,0.46828957]
[1770060911719,18.66787182,104.12,104.08,0.46828957]
[1770060911918,4.03920142,104.12,104.08,0.46828957]
[1770060912140,0.48962085,104.12,104.08,0.46828957]
[1770060912343,0.48962085,104.12,104.09,0.46828957]
[1770060912729,0.48962085,104.12,104.08,3.54958057]
[1770060912730,0.48962085,104.11,104.08,0.46828957]
[1770060912929,0.48962085,104.1,104.07,0.46828957]
[1770060913248,0.48962085,104.1,104.07,4.01787014]
[1770060913747,0.48962085,104.1,104.07,0.46828957]
[1770060914342,4.03920142,104.1,104.07,0.46828957]
[1770060915333,13.6453647,104.1,104.06,0.46828957]
[1770060916946,4.03920142,104.11,104.08,0.46828957]
[1770060917134,0.48962085,104.1,104.07,0.46828957]
[1770060917337,4.03920142,104.1,104.07,0.46828957]
[1770060917949,0.48962085,104.1,104.07,0.46828957]
[1770060918860,4.03920142,104.1,104.07,0.46828957]
[1770060919554,0.48962085,104.1,104.07,0.46828957]
[1770060920856,4.03920142,104.1,104.07,0.46828957]
[1770060921541,0.46811845,104.11,104.08,0.49048055]
[1770060921741,4.01769902,104.11,104.08,0.49048055]
[1770060922654,4.01769902,104.1,104.07,0.49048055]
[1770060923836,0.46811845,104.1,104.07,0.49048055]
[1770060924254,4.01769902,104.1,104.07,0.49048055]
[1770060925772,10.07265528,104.12,104.09,0.49048055]
[1770060925926,10.07265528,104.12,104.07,0.49048055]
[1770060925927,0.46811845,104.1,104.07,0.49048055]
[1770060927049,34.08341209,104.12,104.08,0.49048055]
[1770060927258,4.01769902,104.11,104.08,0.49048055]
[1770060928157,13.62297976,104.11,104.08,0.49048055]
[1770060928454,13.62591629,104.11,104.08,0.49048055]
[1770060929357,13.62591629,104.11,104.05,0.49048055]
[1770060929358,0.46811845,104.1,104.05,0.49048055]
[1770060929561,9.60485949,104.12,104.08,0.49048055]
[1770060929752,4.02063555,104.12,104.09,0.49048055]
[1770060929956,4.02063555,104.13,104.09,0.49048055]
[1770060930367,0.46811845,104.13,104.1,0.49048055]
[1770060930659,0.46811845,104.12,104.09,0.49048055]
[1770060933660,9.04286379,104.16,104.12,0.49048055]
[1770060933962,9.04286379,104.16,104.11,0.49048055]
[1770060933963,4.02063555,104.14,104.11,0.49048055]
[1770060934258,0.46811845,104.12,104.08,30.2525171]
[1770060934457,4.02063555,104.12,104.08,3.5525171]
[1770060935163,0.46811845,104.12,104.08,3.5525171]
[1770060936268,0.46811845,104.12,104.09,0.49048055]
[1770060937266,0.46811845,104.11,104.08,0.49048055]
[1770060937566,4.02063555,104.09,104.04,13.16374557]
[1770060937869,4.02063555,104.09,104.05,0.49048055]
[1770060938973,0.46811845,104.07,104.03,13.65506361]
[1770060939151,4.02063555,104.07,104.03,4.04299765]
[1770060939351,4.02063555,104.06,104.02,27.19048055]
[1770060939554,4.02063555,104.05,104.01,0.49048055]
[1770060939763,0.46811845,104.04,104.01,0.49048055]
[1770060940272,4.02063555,104.06,104.02,0.49048055]
[1770060940447,9.35820319,104.06,104.02,0.49048055]
[1770060940649,9.35820319,104.05,104.02,0.49048055]
[1770060943480,9.35820319,104.06,104.02,0.49048055]
[1770060943692,9.35820319,104.06,104.03,0.49048055]
[1770060945972,9.35820319,104.1,104.06,0.49048055]
[1770060946262,0.46811845,104.09,104.05,0.49048055]
[1770060946564,0.46811845,104.09,104.06,0.49048055]
[1770060948250,9.35820319,104.09,104.05,0.49048055]
[1770060948551,0.46811845,104.08,104.05,0.49048055]
[1770060948961,9.35820319,104.08,104.05,0.49048055]
[1770060949167,9.35820319,104.07,104.03,9.38056529]
[1770060949750,9.35820319,104.07,104.03,0.49048055]
[1770060950575,9.35820319,104.07,104.03,18.50255331]
[1770060950789,9.36482012,104.08,104.04,0.45923711]
[1770060952474,9.36482012,104.08,104.04,9.34932185]
[1770060953178,0.47473538,104.07,104.04,0.45923711]
[1770060953365,9.36482012,104.07,104.03,0.45923711]
[1770060955357,0.47473538,104.07,104.04,0.45923711]
[1770060956774,18.97378796,104.07,104.03,0.45923711]
[1770060957177,0.47473538,104.07,104.03,9.34932185]
[1770060957674,0.47473538,104.07,104.01,24.03583321]
[1770060957675,0.47473538,104.04,104.01,0.45923711]
[1770060958462,0.47473538,104.04,104.01,9.34932185]
[1770060959968,0.47473538,104.05,104.01,9.34932185]
[1770060960355,0.47473538,104.05,104.01,4.01510429]
[1770060960561,0.47473538,104.04,104.01,4.01510429]
[1770060960794,0.47473538,104.05,104.02,0.45923711]
[1770060960981,0.47473538,104.07,104.03,4.01510429]
[1770060961164,4.03060256,104.07,104.03,0.45923711]
[1770060961478,0.47473538,104.05,104.02,0.45923711]
[1770060963576,0.47473538,104.06,104.02,4.01510429]
[1770060963777,0.47473538,104.03,104.0,0.4]
[1770060963980,0.47473538,104.03,104.0,0.85923711]
[1770060964467,4.03060256,104.03,104.0,0.4]
[1770060964878,4.03060256,104.03,104.0,0.85923711]
[1770060965571,13.64339456,104.03,104.0,0.85923711]
[1770060965774,13.64343104,104.03,104.0,0.85923711]
[1770060966481,0.47473538,104.03,104.0,0.85923711]
[1770060968073,13.16805349,104.04,104.0,0.85923711]
[1770060968074,4.03060256,104.04,104.0,0.85923711]
[1770060968290,0.47473538,104.03,104.0,0.85923711]
[1770060968867,0.47473538,104.04,104.0,4.41510429]
[1770060969189,4.03060256,104.04,104.0,0.85923711]
[1770060969497,0.47473538,104.03,104.0,0.85923711]
[1770060969662,4.03060256,104.03,104.0,0.85923711]
[1770060972188,0.47473538,104.03,104.0,0.85923711]
[1770060972393,4.03060256,104.03,104.0,0.85923711]
[1770060973589,0.47473538,104.04,104.01,0.45923711]
[1770060973888,0.47473538,104.03,104.0,0.85923711]
[1770060974691,0.47473538,104.05,104.01,0.45923711]
[1770060975000,0.47473538,104.05,104.02,0.45923711]
[1770060975804,0.47473538,104.07,104.03,4.01510429]
[1770060977194,0.47473538,104.06,104.03,0.45923711]
[1770060982377,10.1004253,104.09,104.04,4.01826688]
[1770060982581,10.1004253,104.09,104.05,0.4623997]
[1770060982582,0.4933545,104.08,104.05,0.4623997]
[1770060983195,4.04922168,104.08,104.05,0.4623997]
[1770060983409,0.4933545,104.07,104.04,0.4623997]
[1770060983581,0.4933545,104.07,104.04,10.07396925]
[1770060983776,0.4933545,104.07,104.04,13.62983643]
[1770060985297,0.4933545,104.07,104.04,0.4623997]
[1770060987278,0.4933545,104.07,104.04,13.62979859]
[1770060987479,0.4933545,104.09,104.06,0.4623997]
[1770060987679,0.4933545,104.08,104.05,0.4623997]
[1770060988198,0.4933545,104.07,104.04,27.1823997]
[1770060988607,0.4933545,104.07,104.04,30.73687574]
[1770060989010,0.4933545,104.07,104.04,27.1823997]
[1770060989191,0.4933545,104.07,104.04,30.73687574]
[1770060989389,0.4933545,104.07,104.05,0.4623997]
[1770060989590,0.4933545,104.08,104.05,0.4623997]
[1770060992106,0.4933545,104.08,104.05,4.01687574]
[1770060993406,0.4933545,104.08,104.05,0.4623997]
[1770060994705,0.4933545,104.08,104.05,4.01687574]
[1770060995305,0.4933545,104.08,104.05,13.62761311]
[1770060996292,0.4933545,104.08,104.05,0.4623997]
[1770060996513,0.4933545,104.08,104.05,13.62751159]
[1770060997707,0.4933545,104.09,104.06,0.4623997]
[1770060998517,0.4933545,104.08,104.05,0.4623997]
[1770060999516,0.4933545,104.07,104.04,26.04266509]
[1770060999717,0.4933545,104.06,104.04,26.04266509]
[1770060999895,0.4933545,104.05,104.02,0.4623997]
[1770061000213,33.62823815,104.08,104.01,39.86842057]
[1770061000214,0.4933545,104.03,104.01,26.7]
[1770061001311,0.4933545,104.03,104.0,0.4]
[1770061001816,4.04783054,104.03,104.0,0.4]
[1770061003616,0.4933545,104.02,104.0,0.4]
[1770061004105,4.04783054,104.03,104.0,0.8623997]
[1770061004293,4.04783054,104.05,104.01,0.4623997]
[1770061004495,13.65870861,104.05,104.02,0.4623997]
[1770061004690,0.4933545,104.02,104.0,27.12]
[1770061004907,3.55447604,104.01,104.0,27.12]
[1770061005412,0.4933545,104.02,104.0,27.12]
[1770061005619,4.04783054,104.02,104.0,27.12]
[1770061005836,4.04783054,104.01,104.0,27.12]
[1770061006006,4.04783054,104.01,103.98,0.785758]
[1770061006206,4.04783054,104.01,103.98,10.40292145]
[1770061006411,0.4933545,104.01,103.98,0.3233583]
[1770061006605,0.4933545,103.98,103.94,10.18293322]
[1770061006820,4.04783054,103.98,103.94,10.18293322]
[1770061007526,4.04783054,103.97,103.94,0.5623997]
[1770061007833,3.55447604,103.96,103.92,11.58258934]
[1770061008037,3.55447604,103.96,103.92,15.13706538]
[1770061008627,3.55447604,103.96,103.91,27.61229874]
[1770061008830,3.55447604,103.96,103.92,9.62231031]
[1770061009000,4.04783054,103.96,103.92,9.62231031]
[1770061009328,4.04783054,103.96,103.91,3.55447604]
[1770061009511,0.4933545,103.96,103.91,3.55447604]
[1770061009721,4.04783054,103.96,103.92,10.02489833]
[1770061009917,4.04783054,103.96,103.93,0.40218848]
[1770061010913,0.49546035,103.95,103.92,0.40218848]
[1770061011213,4.04993639,103.96,103.92,0.40218848]
[1770061011412,0.49546035,103.98,103.93,0.68651162]
[1770061011632,0.49546035,103.98,103.94,3.95666452]
[1770061011907,0.49546035,103.98,103.95,0.40218848]
[1770061012951,4.04993639,103.99,103.95,3.95666452]
[1770061013238,0.49546035,103.99,103.96,0.40218848]
[1770061013839,0.49546035,103.99,103.96,3.95666452]
[1770061015232,0.49546035,104.03,103.97,3.95666452]
[1770061015435,0.49546035,104.02,103.99,3.95666452]
[1770061015627,0.49546035,104.03,103.99,3.95666452]
[1770061016622,0.49546035,104.03,103.99,13.57293913]
[1770061018419,0.49546035,104.03,103.99,3.95666452]
[1770061019114,0.49546035,104.02,103.99,3.95666452]
[1770061020223,0.49546035,104.02,103.99,0.40218848]
[1770061020726,0.49546035,104.02,103.99,3.95666452]
[1770061021039,0.49546035,104.02,103.99,13.57294546]
[1770061022221,0.49546035,104.03,104.0,3.55447604]
[1770061022425,0.49546035,104.03,104.0,3.95666452]
[1770061022625,0.49546035,104.03,104.0,13.57166593]
[1770061022836,0.49546035,104.04,104.01,3.95666452]
[1770061023340,0.49546035,104.03,103.99,3.55447604]
[1770061024225,0.49546035,104.02,103.98,13.57338912]
[1770061024426,0.49546035,104.02,103.99,3.95666452]
[1770061025884,0.49546035,104.02,103.98,13.57338912]
[1770061026142,4.04993639,104.02,103.98,13.57338912]
[1770061028824,0.49546035,104.01,103.98,0.40218848]
[1770061029322,0.49546035,104.01,103.98,3.95666452]
[1770061030022,0.49546035,104.01,103.96,10.02072953]
[1770061030023,0.49546035,104.0,103.96,10.02072953]
[1770061030234,0.49546035,104.0,103.95,13.71843064]
[1770061030235,0.49546035,103.99,103.95,13.71843064]
[1770061030436,3.55447604,103.99,103.95,0.40218848]
[1770061030640,0.49546035,103.98,103.95,0.40218848]
[1770061031445,3.55447604,103.99,103.95,13.57666037]
[1770061031446,4.04993639,103.99,103.95,13.57666037]
[1770061031621,0.49546035,103.99,103.95,13.57666037]
[1770061031826,4.04993639,103.99,103.95,3.95666452]
[1770061032039,0.49546035,103.99,103.95,13.57638894]
[1770061032253,0.49546035,103.99,103.95,3.95666452]
[1770061032438,4.04993639,103.99,103.95,0.40218848]
[1770061032643,0.49546035,103.99,103.96,0.40218848]
[1770061033052,0.49546035,103.99,103.95,13.57660093]
[1770061033457,13.66641275,103.99,103.95,0.40218848]
[1770061033660,4.04993639,103.99,103.95,0.40218848]
[1770061034057,0.49546035,103.99,103.96,0.40218848]
[1770061034560,0.49546035,103.99,103.96,10.02115408]
[1770061034761,0.49546035,103.99,103.96,13.57563012]
[1770061035258,0.49546035,103.99,103.96,10.02115408]
[1770061035668,0.49546035,103.99,103.96,0.40218848]
[1770061036464,0.49546035,103.99,103.96,10.0212112]
[1770061039270,0.49546035,104.01,103.97,0.40218848]
[1770061039474,0.49546035,104.01,103.97,3.95666452]
[1770061040345,0.49546035,104.01,103.96,9.61902272]
[1770061040346,0.49546035,104.01,103.98,3.95666452]
[1770061040551,0.45734552,104.03,103.99,3.95666452]
[1770061040963,0.45734552,104.03,104.0,0.40218848]
[1770061041259,0.45734552,104.03,104.0,13.57204464]
[1770061045042,0.45734552,104.06,104.03,0.40218848]
[1770061046158,0.45734552,104.06,104.03,3.95666452]
[1770061046357,0.45734552,104.07,104.04,3.95666452]
[1770061046551,0.45734552,104.07,104.04,3.55447604]
[1770061046746,0.45734552,104.07,104.04,3.95666452]
[1770061047150,0.45734552,104.07,104.04,13.5682763]
[1770061047349,0.45734552,104.07,104.04,3.55447604]
[1770061047549,0.45734552,104.07,104.03,10.01436064]
[1770061047550,0.45734552,104.07,104.03,13.56883668]
[1770061048259,0.45734552,104.07,104.04,9.61155341]
[1770061048458,0.45734552,104.07,104.04,13.16602945]
[1770061049270,0.45734552,104.07,104.04,3.55447604]
[1770061049467,0.45734552,104.07,104.04,13.16611741]
[1770061050059,0.45734552,104.07,104.04,3.55447604]
[1770061050260,0.45734552,104.07,104.03,13.56892345]
[1770061050572,0.45734552,104.07,104.03,3.95624037]
[1770061051075,0.45734552,104.07,104.04,3.95624037]
[1770061051366,0.1,104.1,104.07,0.40218848]
[1770061051568,0.7,104.13,104.09,3.55405189]
[1770061051871,0.7,104.13,104.1,3.39268532]
[1770061052246,0.7,104.13,104.1,3.55405189]
[1770061052662,0.7,104.13,104.11,3.55405189]
[1770061052972,0.7,104.13,104.11,1.61715006]
[1770061053168,0.7,104.13,104.08,0.28432314]
[1770061053169,0.7,104.13,104.1,3.55405189]
[1770061053356,0.2,104.13,104.11,3.55405189]
[1770061053762,0.2,104.13,104.1,3.55405189]
[1770061054261,0.7,104.13,104.1,3.55405189]
[1770061054872,0.2,104.13,104.11,3.55405189]
[1770061055172,0.2,104.13,104.1,0.28432314]
[1770061055173,0.5,104.14,104.1,3.83837503]
[1770061055353,4.05405189,104.14,104.1,9.8901563]
[1770061055754,4.05405189,104.14,104.1,13.44420819]
[1770061055755,0.5,104.14,104.1,13.44420819]
[1770061056056,0.5,104.13,104.08,24.01884103]
[1770061056257,4.05405189,104.13,104.09,13.16060654]
[1770061056568,0.5,104.13,104.1,9.60588396]
[1770061058279,0.5,104.14,104.1,9.60588396]
[1770061058475,4.05405189,104.14,104.1,9.60588396]
[1770061058666,4.05405189,104.14,104.1,13.15993585]
[1770061059579,0.5,104.14,104.11,3.55405189]
[1770061059778,0.5,104.14,104.1,37.17530568]
[1770061061779,4.05405189,104.14,104.1,9.60588396]
[1770061062164,4.05405189,104.15,104.1,13.15993585]
[1770061062383,4.05405189,104.15,104.1,37.17530568]
[1770061062582,4.05405189,104.16,104.11,3.83837503]
[1770061063568,0.5,104.15,104.12,9.60430272]
[1770061064476,4.05405189,104.15,104.12,9.60430272]
[1770061067378,4.05405189,104.16,104.12,13.15835461]
[1770061067964,4.05405189,104.16,104.12,37.16911142]
[1770061068170,4.05405189,104.16,104.12,33.61505953]
[1770061068365,4.05405189,104.15,104.12,9.60430272]
[1770061068570,0.5,104.14,104.12,9.60430272]
[1770061068873,4.05405189,104.15,104.12,9.60430272]
[1770061070690,0.5,104.13,104.09,3.55405189]
[1770061070884,0.5,104.13,104.1,9.60574163]
[1770061070885,0.5,104.12,104.1,9.60574163]
[1770061071493,0.5,104.12,104.09,9.89088995]
[1770061071690,4.05405189,104.12,104.09,9.60656681]
[1770061072477,4.05405189,104.13,104.1,9.60610709]
[1770061072775,4.05405189,104.14,104.11,9.60512977]
[1770061073095,0.5,104.13,104.09,13.16059243]
[1770061073275,0.5,104.12,104.09,9.60654054]
[1770061073696,0.5,104.12,104.1,9.60608051]
[1770061075585,4.05405189,104.13,104.1,9.60608051]
[1770061075786,0.5,104.12,104.09,9.74867588]
[1770061076699,0.5,104.12,104.09,13.30272777]
[1770061077095,0.5,104.12,104.09,9.74867588]
[1770061077581,0.5,104.12,104.08,13.30382062]
[1770061077781,4.05405189,104.12,104.08,13.30382062]
[1770061079905,0.5,104.1,104.07,9.75056035]
[1770061080202,0.5,104.1,104.02,3.55405189]
[1770061080203,0.5,104.07,104.02,3.55405189]
[1770061080378,0.5,104.06,104.03,9.61231529]
[1770061080801,4.05405189,104.06,104.03,9.61231529]
[1770061081003,4.05405189,104.07,104.03,9.61231529]
[1770061081503,4.05405189,104.06,104.02,9.61327845]
[1770061082197,3.55405189,104.05,104.02,9.61327845]
[1770061083305,4.05405189,104.06,104.02,9.61327845]
[1770061083500,4.05405189,104.05,104.02,9.61327845]
[1770061084804,0.5,104.03,104.0,64.20327143]
[1770061084992,0.5,104.03,104.0,73.81826364]
[1770061085308,4.05405189,104.03,104.0,73.81826364]
[1770061085511,0.5,104.03,104.0,73.81826364]
[1770061086084,4.05405189,104.03,104.0,73.81826364]
[1770061086292,0.5,104.02,104.0,37.50327143]
[1770061086491,0.5,104.01,104.0,37.50327143]
[1770061086691,4.05405189,104.02,103.99,9.71580846]
[1770061086892,0.5,104.01,103.99,0.1]
[1770061087091,0.5,104.01,103.91,78.72833341]
[1770061087092,4.05405189,104.0,103.95,27.60246078]
[1770061087296,0.5,103.98,103.94,26.7]
[1770061087587,0.5,103.98,103.95,9.61966577]
[1770061088602,4.05405189,103.98,103.95,9.61966577]
[1770061089084,4.05405189,103.98,103.93,39.87570751]
[1770061089085,0.5,103.96,103.93,39.87570751]
[1770061089289,0.5,103.96,103.93,9.62165562]
[1770061089990,0.5,103.97,103.94,9.62076616]
[1770061090195,3.55405189,104.0,103.95,13.62634389]
[1770061090499,8.89887072,103.98,103.94,19.25638107]
[1770061090693,8.89887072,103.98,103.95,9.61986984]
[1770061091099,9.61484885,104.01,103.96,0.45236769]
[1770061091294,8.89887072,104.0,103.96,0.45236769]
[1770061091595,8.89887072,104.0,103.95,18.97110825]
[1770061092006,9.61484885,104.01,103.95,10.07223753]
[1770061092007,8.89887072,103.99,103.95,10.07223753]
[1770061092304,9.3942927,103.98,103.94,10.35715359]
[1770061092510,0.49542198,103.97,103.94,10.35715359]
[1770061093116,0.49542198,103.96,103.93,9.62152768]
[1770061093297,0.49542198,103.96,103.92,10.17468133]
[1770061093298,0.49542198,103.95,103.92,10.17468133]
[1770061093810,0.49542198,103.95,103.92,19.07355205]
[1770061094002,0.49542198,103.96,103.93,10.07415325]
[1770061094187,0.49542198,103.96,103.93,9.35123841]
[1770061094394,9.3942927,103.96,103.93,0.45236769]
[1770061094589,0.49542198,103.95,103.92,10.17515444]
[1770061096014,0.49542198,103.98,103.94,9.35123841]
[1770061096192,9.3942927,103.98,103.94,0.45236769]
[1770061096386,9.3942927,103.98,103.94,10.07268863]
[1770061096592,0.49542198,103.98,103.94,18.97155935]
[1770061100416,0.49542198,103.98,103.94,18.51919166]
[1770061100616,0.45861946,103.97,103.94,18.51919166]
[1770061101327,0.45861946,103.98,103.94,43.04903765]
[1770061101499,0.45861946,104.01,103.97,9.37637883]
[1770061101918,0.45861946,104.01,103.98,9.37637883]
[1770061102114,0.45861946,104.03,103.99,9.37637883]
[1770061102312,0.45861946,104.03,104.0,8.89887072]
[1770061102618,9.35749018,104.02,103.97,36.38070197]
[1770061102796,0.45861946,104.0,103.96,9.37637883]
[1770061103118,0.45861946,103.99,103.95,36.38070197]
[1770061103317,0.45861946,103.98,103.95,26.72]
[1770061103705,9.35749018,103.98,103.95,26.72]
[1770061104036,0.45861946,103.97,103.95,26.72]
[1770061105117,0.45861946,103.97,103.95,36.33999348]
[1770061105320,0.45861946,103.98,103.95,36.33999348]
[1770061105933,0.45861946,103.98,103.95,26.72]
[1770061106732,0.45861946,103.98,103.95,36.33948251]
[1770061109142,0.45861946,103.99,103.96,0.47750811]
[1770061109307,0.45861946,104.0,103.96,9.37637883]
[1770061109513,0.45861946,104.0,103.97,0.47750811]
[1770061109742,0.45861946,104.01,103.97,9.37637883]
[1770061110445,18.96960565,104.04,104.0,0.47750811]
[1770061110744,0.45861946,104.03,104.0,18.99152933]
[1770061111414,0.45861946,104.04,104.0,18.99152933]
[1770061112407,0.45861946,104.05,104.02,8.89029176]
[1770061112613,0.45861946,104.05,104.02,18.50340384]
[1770061113322,0.45861946,104.05,104.01,19.26623193]
[1770061113531,0.45861946,104.05,104.02,9.61347275]
[1770061113716,0.45861946,104.05,104.01,8.89029176]
[1770061114052,0.45861946,104.05,103.99,19.26807858]
[1770061114053,9.34891122,104.03,103.99,19.26807858]
[1770061114340,0.45861946,104.04,104.0,9.36779987]
[1770061114710,0.45861946,104.04,104.01,9.61437621]
[1770061115112,0.45861946,104.02,103.98,8.89029176]
[1770061115313,0.45861946,104.02,103.98,18.98485059]
[1770061115720,9.34891122,104.02,103.98,18.98485059]
[1770061115922,9.34891122,104.02,103.98,10.09455883]
[1770061116122,0.45861946,104.01,103.97,19.26978688]
[1770061116329,0.45861946,104.01,103.97,18.98546374]
[1770061117835,0.45861946,104.01,103.98,9.36779987]
[1770061119249,0.45861946,104.01,103.98,18.98485662]
[1770061120725,18.50292176,104.03,103.98,18.98485662]
[1770061120930,0.45861946,104.02,103.99,8.89029176]
[1770061121751,0.45861946,104.02,104.0,8.89029176]
[1770061122043,0.45861946,104.02,103.99,18.98397626]
[1770061122516,0.45861946,104.02,103.99,9.36779987]
[1770061123229,0.45861946,104.02,103.99,18.98410261]
[1770061123527,0.45861946,104.03,103.99,18.98410261]
[1770061124117,0.45861946,104.02,103.99,8.89029176]
[1770061124343,0.45861946,104.02,103.98,18.98455606]
[1770061124519,8.89029176,104.04,103.99,18.98349552]
[1770061124721,8.89029176,104.04,104.0,9.36779987]
[1770061124722,0.45861946,104.04,104.0,9.36779987]
[1770061125340,0.45861946,104.02,103.98,19.26845244]
[1770061131050,0.45861946,104.02,103.99,8.89029176]
[1770061133538,0.46249662,104.03,104.0,8.89029176]
[1770061133742,0.46249662,104.03,103.99,18.96956691]
[1770061134254,0.46249662,104.03,103.99,9.35375964]
[1770061134432,0.46249662,104.02,103.98,18.7912899]
[1770061134639,0.46249662,104.02,103.98,19.25475778]
[1770061134838,0.46249662,104.02,103.98,8.89029176]
[1770061135149,9.61388213,104.02,103.98,8.89029176]
[1770061135351,0.46249662,104.01,103.98,8.89029176]
[1770061135557,0.46249662,104.01,103.98,9.35375964]
[1770061135758,0.46249662,104.01,103.98,18.97096149]
[1770061136349,0.46249662,104.01,103.98,13.63830482]
[1770061139956,0.46249662,104.03,104.0,4.02110297]
[1770061140336,0.46249662,104.03,103.99,0.46346788]
[1770061140541,0.46249662,104.03,103.99,4.02110297]
[1770061140745,0.46249662,104.03,103.99,0.46346788]
[1770061140968,0.46249662,104.03,103.99,4.02110297]
[1770061141144,0.46249662,104.03,104.0,3.55763509]
[1770061142448,0.46249662,104.02,103.99,13.63659945]
[1770061142761,0.46249662,104.02,103.99,4.02110297]
[1770061143353,0.46249662,104.02,103.99,13.6373617]
[1770061144564,0.46249662,104.02,104.0,3.55763509]
[1770061144748,0.46249662,104.02,103.99,13.17389382]
[1770061144949,0.46249662,104.02,103.99,13.6373617]
[1770061145168,0.46249662,104.02,103.99,3.55763509]
[1770061145367,0.46249662,104.02,103.98,34.12321501]
[1770061145368,0.46249662,104.02,103.98,13.63780726]
[1770061145979,0.46249662,104.02,103.99,3.55763509]
[1770061146543,0.46249662,104.01,103.98,9.61718363]
[1770061146862,0.46249662,104.01,103.98,13.1748615]
[1770061148371,0.46249662,104.0,103.97,13.7808579]
[1770061148750,0.46249662,104.0,103.98,13.17485782]
[1770061152373,0.46249662,104.0,103.98,9.61722273]
[1770061152571,0.46249662,104.0,103.98,13.17485782]